[Event "Chinese League Division-A 2024"]
[Site "Fuling Chongqing"]
[Date "2024.06.26"]
[Round "1.26"]
[White "Lu, Shanglei"]
[Black "Bu, Xiangzhi"]
[Result "1/2-1/2"]
[ECO "C43"]
[WhiteElo "2606"]
[BlackElo "2689"]
[Annotator "TA"]
[PlyCount "66"]
[EventDate "2024.06.28"]
[EventType "team-tourn"]
[EventCountry "CHN"]
[SourceTitle "playchess.com"]
[Source "ChessBase"]
[SourceQuality "1"]
[TimeControl "40/5400+30:1800+30"]

{[%evp 14,66,27,27,27,17,20,18,12,27,14,17,12,14,19,24,15,26,12,12,6,4,7,8,12,10,10,7,4,7,7,10,4,5,10,0,0,0,0,0,0,0,0,0,0,0,0,0,0,0,0,0,0,0,0]} 1. e4 {[%emt 0:00:08]} e5 {[%emt 0:00:25]} 2. Nf3 {[%emt 0:01:19]} Nf6 {[%emt 0:00:46]} 3. d4 {[%emt 0:01:31]} Nxe4 {[%emt 0:02:33]} 4. Bd3 {[%emt 0:03:39]} d5 {[%emt 0:00:17]} 5. Nxe5 {[%emt 0:01:34]} Nd7 {[%emt 0:00:31]} 6. Nxd7 {[%emt 0:00:27]} Bxd7 {[%emt 0:00:16]} 7. O-O {[%emt 0:04:44]} Bd6 {[%emt 0:02:03]} 8. Qh5 {[%emt 0:01:28]} Qf6 {[%emt 0:00:54]} 9. Nc3 {[%emt 0:04:43]} Qxd4 {[%emt 0:02:28]} 10. Be3 {[%emt 0:01:28][%cal Bc1e3,Be3d4,Bd4e5][%mdl 32]} Qe5 {[%emt 0:00:53]} 11. Qxe5+ {[%emt 0:00:10]} Bxe5 {[%emt 0:00:02]} 12. Nxd5 {[%emt 0:00:11]} Nf6 {[%emt 0:00:11][%cal Be4f6,Bf6d5,Bd5b4,Bb4c2][%mdl 32] [#]} 13. Rae1 $1 {[%emt 0:00:55][%cal Oe3h6]} Nxd5 {[%emt 0:02:36]} 14. Bd4 {[%emt 0:01:49]} O-O-O {[%emt 0:02:01]} 15. Bxe5 {[%emt 0:02:13]} Nb4 {[%emt 0:00:46]} 16. Bc4 {[%emt 0:02:44] This pair of bishops is nice. The position is equal.} Nxc2 {[%emt 0:01:58]} 17. Re2 {[%emt 0:02:52]} f6 $1 {[%emt 0:01:10]} 18. Bc3 {[%emt 0:01:02]} Bf5 {[%emt 0:01:39] [#]} 19. g4 $1 {[%emt 0:01:56]} Bg6 {[%emt 0:00:11]} 20. f4 {[%emt 0:00:21]} ({Of course not} 20. Re7 Rhe8 21. Rxe8 (21. Rxg7 $2 {too greedy.} Re4 $19) 21... Bxe8 $17) 20... Nd4 {[%emt 0:00:35] Against f5} 21. Re7 {[%emt 0:00:28] Dodges Bf7} b5 {[%emt 0:00:40]} 22. Bxd4 {[%emt 0:03:58]} bxc4 {[%emt 0:00:17]} 23. Bxa7 {[%emt 0:00:07][%cal Of4f5]} Rhe8 {[%emt 0:00:43]} 24. Rfe1 {[%emt 0:01:19]} Rxe7 {[%emt 0:00:12]} 25. Rxe7 $11 {[%emt 0:00:08][%mdl 4096] Endgame. KRB-KRB} f5 {[%emt 0:00:35]} 26. gxf5 {[%emt 0:00:43]} Bxf5 {[%emt 0:00:06]} 27. Be3 {[%emt 0:00:14]} Rd3 {[%emt 0:00:45]} 28. Kf2 {[%emt 0:00:09]} g6 {[%emt 0:01:00]} 29. Rxh7 {[%emt 0:00:14]} c3 {[%emt 0:00:10]} 30. bxc3 {[%emt 0:00:06]} Rxc3 {[%emt 0:00:05]} 31. h4 {[%emt 0:00:16]} Ra3 {[%emt 0:00:25]} 32. h5 {[%emt 0:00:15]} gxh5 {[%emt 0:00:11]} 33. Rxh5 {[%emt 0:00:07]} Rxa2+ {[%emt 0:00:04] A balanced but interesting game.   Weighted Error Value: White=0.01 (flawless) /Black=0.00 (flawless) .  OK:         	White=15    	Black=19     Best:        	White=1     	Black=1      Strong:       	---       	Black=1} 1/2-1/2

[Event "Chinese League Division-A 2024"]
[Site "Fuling Chongqing"]
[Date "2024.06.26"]
[Round "1.27"]
[White "Zeng, Chongsheng"]
[Black "Xu, Minghui"]
[Result "1-0"]
[ECO "A17"]
[WhiteElo "2578"]
[BlackElo "2388"]
[Annotator "TA"]
[PlyCount "105"]
[EventDate "2024.06.28"]
[EventType "team-tourn"]
[EventCountry "CHN"]
[SourceTitle "playchess.com"]
[Source "ChessBase"]
[SourceQuality "1"]
[TimeControl "40/5400+30:1800+30"]

{[%evp 26,105,-14,-12,-12,-165,-80,-104,-145,-134,-128,-202,-201,-186,-178,-170,-129,-175,0,7,0,0,0,0,0,0,0,0,17,0,4,7,26,17,49,9,45,45,37,13,105,91,100,57,61,58,56,39,43,58,116,110,97,109,112,116,145,159,188,195,197,197,225,197,213,212,301,279,309,322,291,293,310,310,312,249,247,200,481,493,454,440]} 1. e3 {[%emt 0:00:10]} d5 {[%emt 0:01:18]} 2. c4 {[%emt 0:00:06]} e6 {[%emt 0:00:06]} 3. Nf3 {[%emt 0:01:20]} Nf6 {[%emt 0:00:09]} 4. Nc3 {[%emt 0:01:19]} Bd6 {[%emt 0:07:28]} 5. d4 {[%emt 0:00:24]} b6 {[%emt 0:01:29]} 6. Qc2 {[%emt 0:04:06] A17: English Opening: 1...Nf6 with ...Bb4.} Bb7 {[%emt 0:09:04]} 7. cxd5 {[%emt 0:00:52]} exd5 {[%emt 0:00:09]} 8. Nb5 {[%emt 0:05:14]} O-O {[%emt 0:01:24]} 9. Bd2 $146 {[%emt 0:01:12]} ({Predecessor:} 9. Nxd6 cxd6 10. Bd3 Nc6 11. Bd2 Rc8 12. Qa4 Qd7 13. O-O Rfd8 14. Rfc1 Ne4 15. Be1 {1-0 Andreikin,D (2724)-Sarana,A (2640) Bryansk Zilberstein Memorial 5th rapid 2021 (8)}) 9... c5 {[%emt 0:02:47]} 10. Nxd6 {[%emt 0:08:05]} Qxd6 {[%emt 0:00:07]} 11. dxc5 {[%emt 0:03:12]} bxc5 {[%emt 0:00:08]} 12. Bd3 {[%emt 0:02:13]} Re8 {[%emt 0:06:46]} 13. O-O-O {[%emt 0:07:43]} d4 {[%emt 0:22:16]} (13... c4 $17 14. Be2 Nc6) 14. Kb1 $11 {[%emt 0:05:25]} Nbd7 {[%emt 0:03:51]} 15. Bc3 $2 {[%emt 0:03:45]} (15. exd4 $11 Rac8 16. Rhe1 Rxe1 17. Rxe1 (17. Bxe1 cxd4 18. Qd2 Ne4 $17)) 15... Rac8 {[%emt 0:03:32]} (15... dxc3 16. Bxh7+ Nxh7 17. Rxd6 $16) (15... Bd5 $1 $19 {has better winning chances.} 16. Be1 (16. exd4 $2 c4 $19) 16... Qe6 (16... dxe3 17. fxe3 Qc6 18. Ka1 $17)) 16. exd4 {[%emt 0:01:10] [#]} c4 $1 {[%emt 0:02:14]} 17. Bf5 {[%emt 0:09:11] [#]} g6 $1 {[%emt 0:00:06]} 18. Nh4 {[%emt 0:01:39]} (18. Qd2 $17 {was worth a try.}) 18... gxf5 {[%emt 0:01:48]} 19. Nxf5 {[%emt 0:00:03]} Qf4 {[%emt 0:03:21]} 20. d5 {[%emt 0:12:21]} Qe4 {[%emt 0:07:28]} 21. Nh6+ {[%emt 0:12:17]} (21. Rd4 $17 {might work better.} Qxc2+ (21... Qxg2 $2 22. Qc1 $18) 22. Kxc2) 21... Kg7 $2 {[%emt 0:06:46]} (21... Kf8 $19 22. Bb4+ Kg7 (22... Nc5 $2 23. Qxe4 Nfxe4 24. Rd4 $19) 23. Nf5+ Kg6 24. Ne7+ Rxe7 25. Bxe7 Qxc2+ (25... Bxd5 26. Rhe1 $15) 26. Kxc2 Nxd5 (26... Bxd5 27. Rhe1 $17)) 22. Qxe4 $1 $11 {[%emt 0:01:18]} Rxe4 {[%emt 0:00:02]} 23. Nf5+ $1 {[%emt 0:00:07]} Kg6 {[%emt 0:01:33]} 24. Nd6 {[%emt 0:01:07]} Re2 {[%emt 0:03:22]} ({Don't play} 24... Rc7 25. Nxe4 (25. Bxf6 Nxf6 26. Nxe4 Nxe4 $11) 25... Nxe4 26. Rhe1 Nxc3+ 27. bxc3 $14) 25. Nxc8 {[%emt 0:07:31]} Bxc8 {[%emt 0:00:02]} 26. Bd4 {[%emt 0:01:02]} Nxd5 {[%emt 0:05:48]} 27. Rhe1 {[%emt 0:04:00]} Rxe1 {[%emt 0:00:37]} 28. Rxe1 {[%emt 0:00:15]} N7b6 {[%emt 0:00:03]} 29. Re8 {[%emt 0:00:19]} f6 {[%emt 0:03:49]} 30. f3 {[%emt 0:02:48]} h5 {[%emt 0:02:36]} 31. Kc1 {[%emt 0:00:33]} Bf5 {[%emt 0:04:41]} 32. Kd2 {[%emt 0:00:48]} Nb4 {[%emt 0:00:30]} (32... Nc8 $11) 33. Rg8+ $16 {[%emt 0:01:17]} Kf7 {[%emt 0:00:12]} 34. Rb8 {[%emt 0:00:11]} N6d5 {[%emt 0:00:52]} 35. Rb7+ {[%emt 0:02:35]} Kg6 {[%emt 0:00:02]} 36. a3 {[%emt 0:01:06]} (36. Rxa7 Nc6 37. Ra4 Nxd4 $19) 36... Nc6 {[%emt 0:01:02]} 37. Bxa7 {[%emt 0:00:20]} Bc8 {[%emt 0:00:58]} ({Better is} 37... Na5 $14 38. Rb8 Nb3+ 39. Kd1 Kf7) 38. Rb5 $16 {[%emt 0:00:02]} Nf4 {[%emt 0:00:29]} 39. g3 {[%emt 0:01:33]} Nd3 {[%emt 0:00:32]} 40. Be3 {[%emt 0:00:00]} Nce5 {[%emt 0:00:00]} 41. Ke2 {[%emt 0:07:11]} c3 {[%emt 0:08:30]} 42. bxc3 {[%emt 0:01:27]} Ba6 {[%emt 0:00:04]} 43. Rb6 {[%emt 0:00:37]} Bc4 {[%emt 0:01:51]} 44. Bd4 {[%emt 0:02:52]} Nf4+ {[%emt 0:00:25]} 45. Kf2 {[%emt 0:01:04]} Ned3+ {[%emt 0:01:07]} (45... Nd5 {was called for.}) 46. Kg1 $18 {[%emt 0:00:29]} Nd5 {[%emt 0:01:45]} 47. Rc6 {[%emt 0:00:35]} Bb5 {[%emt 0:00:22]} 48. Rd6 {[%emt 0:00:11]} Bc4 {[%emt 0:00:05]} 49. a4 {[%emt 0:00:18]} Ne1 {[%emt 0:00:10]} 50. f4 {[%emt 0:01:34]} Nf3+ {[%emt 0:00:08]} 51. Kg2 {[%emt 0:00:38]} Ne1+ $2 {[%emt 0:00:10]} (51... Nd2 52. Kg1 Nf3+ 53. Kg2 Nd2) 52. Kf2 $18 {[%emt 0:00:17]} Nd3+ {[%emt 0:00:10]} 53. Kg1 {[%emt 0:00:05]} 1-0

[Event "Chinese League Division-A 2024"]
[Site "Fuling Chongqing"]
[Date "2024.06.26"]
[Round "1.28"]
[White "Chen, Zhi"]
[Black "Liu, Yan"]
[Result "0-1"]
[ECO "B90"]
[WhiteElo "2164"]
[BlackElo "2573"]
[Annotator "TA"]
[PlyCount "70"]
[EventDate "2024.06.28"]
[EventType "team-tourn"]
[EventCountry "CHN"]
[SourceTitle "playchess.com"]
[Source "ChessBase"]
[SourceQuality "1"]
[TimeControl "40/5400+30:1800+30"]

{[%evp 12,70,17,7,25,31,26,21,22,27,21,8,0,0,0,0,7,0,34,0,15,0,0,-39,-60,-64,-15,-169,-60,-198,-206,-184,-144,-208,-205,-175,-166,-316,-321,-342,-323,-466,-467,-415,-382,-489,-462,-476,-476,-595,-602,-1203,-1062,-1228,-1200,-3688,-3454,-29989,-29990,-29990,-29991]} 1. e4 {[%emt 0:00:03]} c5 {[%emt 0:00:54]} 2. Nf3 {[%emt 0:00:11]} d6 {[%emt 0:00:13]} 3. d4 {[%emt 0:00:07]} cxd4 {[%emt 0:00:17]} 4. Nxd4 {[%emt 0:00:06]} Nf6 {[%emt 0:00:11]} 5. Nc3 {[%emt 0:00:13]} a6 {[%emt 0:00:07]} 6. h3 {[%emt 0:00:48]} e5 {[%emt 0:02:03]} 7. Nde2 {[%emt 0:00:30]} h5 {[%emt 0:02:39]} 8. Bg5 {[%emt 0:00:29]} Be6 {[%emt 0:01:21]} 9. Bxf6 {[%emt 0:04:30]} Qxf6 {[%emt 0:00:07] The position is equal.} 10. Nd5 {[%emt 0:00:05]} Qd8 {[%emt 0:00:15]} 11. Qd3 {[%emt 0:00:37]} Nd7 {[%emt 0:01:17]} 12. O-O-O {[%emt 0:04:34]} g6 {[%emt 0:00:29]} 13. Kb1 {[%emt 0:00:49]} Nc5 {[%emt 0:06:32]} 14. Qf3 {[%emt 0:00:17]} Bh6 {[%emt 0:07:56]} 15. Nec3 {[%emt 0:16:49]} O-O {[%emt 0:03:53]} 16. g3 {[%emt 0:12:45]} b5 {[%emt 0:06:09]} 17. a3 {[%emt 0:03:08]} Rb8 {[%emt 0:05:57]} 18. Be2 {[%emt 0:04:27]} Kh8 {[%emt 0:14:50]} (18... Kg7 $1 $15 {might be stronger.}) 19. Qg2 $2 {[%emt 0:21:48] White is now going downhill.} (19. h4 $11 {and White has nothing to worry.}) 19... Bd7 {[%emt 0:04:00]} (19... Qd7 $1 $19 {And now ...a5 would win.} 20. Nf6 Qb7) 20. f4 {[%emt 0:06:20]} (20. b4 $15) 20... a5 $19 {[%emt 0:02:37] Hoping for ...b4.} 21. b4 {[%emt 0:08:22]} axb4 {[%emt 0:00:25]} 22. axb4 {[%emt 0:00:19] [#]} exf4 {[%emt 0:09:14]} 23. gxf4 {[%emt 0:06:39] [#]} (23. bxc5 b4 24. Na2 b3 $19) 23... Ra8 $1 {[%emt 0:00:47][%cal Oh6g7]} 24. Qf2 {[%emt 0:04:53] [#]} (24. bxc5 $2 Qa5 $19) (24. Bxb5 $142 Qb8 25. Bc4) 24... Bg7 $1 {[%emt 0:05:45][%cal Oc5e4] White must now prevent ...Nxe4!} 25. Kc1 {[%emt 0:02:11]} (25. bxc5 $2 Qa5 26. Kc1 Bxc3 27. Nxc3 Qxc3 28. Qd4+ Qxd4 29. Rxd4 Ra1+ (29... dxc5 $2 30. Rdd1 $19) 30. Kb2 Rxh1 $19) 25... Na4 {[%emt 0:06:52]} 26. Kd2 {[%emt 0:01:50]} (26. Nxb5 $2 {is the wrong capture.} Bxb5 (26... Nb2 27. Rdf1 $17) 27. Bxb5 Nc3 $19 (27... Nb2 $2 28. Kd2 $19)) (26. Nxa4 $142 Rxa4 27. h4) 26... Nxc3 {[%emt 0:02:58]} 27. Nxc3 {[%emt 0:00:04]} Bc6 {[%emt 0:00:25] Strongly threatening ...Qf6. This pair of bishops is nice.} 28. Bd3 {[%emt 0:00:31]} Qf6 {[%emt 0:04:12]} 29. Ne2 {[%emt 0:00:43]} Rfe8 {[%emt 0:00:09]} 30. Qf3 {[%emt 0:00:33]} Ra3 {[%emt 0:03:04]} 31. Qg2 {[%emt 0:00:09]} Qb2 {[%emt 0:04:52]} 32. Rb1 {[%emt 0:00:23]} Qa2 {[%emt 0:00:17][%cal Oa3d3] ( -> ...Rxd3+!)} 33. Ng3 {[%emt 0:01:12]} h4 {[%emt 0:00:30]} 34. Ne2 {[%emt 0:00:27] [#]} Rxd3+ $1 {[%emt 0:00:33][%mdl 512]} 35. Kxd3 {[%emt 0:00:04]} Qc4+ {[%emt 0:00:19] Weighted Error Value: White=1.05/Black=0.11 (very precise) .  Mistake:       	White=4     	Black=2      Inaccurate:     	White=4     	Black=1      OK:         	White=5     	Black=12     Best:        	---       	Black=1      Strong:       	---       	Black=1} 0-1

[Event "Chinese League Division-A 2024"]
[Site "Fuling Chongqing"]
[Date "2024.06.26"]
[Round "1.29"]
[White "Lei, Tingjie"]
[Black "Zhu, Jiner"]
[Result "1/2-1/2"]
[ECO "B52"]
[WhiteElo "2548"]
[BlackElo "2476"]
[Annotator "TA"]
[PlyCount "63"]
[EventDate "2024.06.28"]
[EventType "team-tourn"]
[EventCountry "CHN"]
[SourceTitle "playchess.com"]
[Source "ChessBase"]
[SourceQuality "1"]
[TimeControl "40/5400+30:1800+30"]

{[%evp 24,63,52,27,21,23,24,29,21,19,39,24,73,37,25,0,13,0,0,0,0,0,0,0,0,0,0,0,0,0,27,29,25,22,23,19,21,0,1,0,23,0]} 1. e4 {[%emt 0:00:03]} c5 {[%emt 0:00:10]} 2. Nf3 {[%emt 0:00:05]} d6 {[%emt 0:00:06]} 3. Bb5+ {[%emt 0:00:12]} Bd7 {[%emt 0:00:09]} 4. Bxd7+ {[%emt 0:00:08]} Qxd7 {[%emt 0:00:04]} 5. c4 {[%emt 0:00:07]} Nf6 {[%emt 0:01:27]} 6. Nc3 {[%emt 0:00:05]} g6 {[%emt 0:00:06]} 7. d4 {[%emt 0:01:02]} cxd4 {[%emt 0:00:07]} 8. Nxd4 {[%emt 0:00:04]} Bg7 {[%emt 0:00:07]} 9. f3 {[%emt 0:00:44]} O-O {[%emt 0:00:15]} 10. Be3 {[%emt 0:02:30]} Nc6 {[%emt 0:13:20]} 11. O-O {[%emt 0:00:45]} e6 {[%emt 0:01:28]} 12. Qd2 {[%emt 0:16:25]} Ne5 {[%emt 0:00:18]} 13. b3 {[%emt 0:00:50]} d5 {[%emt 0:11:26]} 14. exd5 {[%emt 0:18:41]} exd5 {[%emt 0:00:09]} 15. c5 {[%emt 0:00:14]} Rac8 {[%emt 0:34:33]} 16. Ndb5 {[%emt 0:09:30]} Nc6 {[%emt 0:05:05]} 17. Rad1 {[%emt 0:00:17][%cal Ob5d6]} Rfd8 {[%emt 0:05:13]} (17... Rcd8 $11) 18. Bf2 {[%emt 0:10:30] White is much more active.} (18. Qf2 {with more complications.} Qf5 19. Nd6 Rxd6 20. cxd6 d4 21. Bxd4 Nxd4 22. Qxd4 Nd7 23. Qxa7 Rxc3 24. Qxb7 Be5 25. Rfe1) 18... d4 {[%emt 0:18:16]} 19. Na4 {[%emt 0:23:05]} (19. Nxd4 $5 Ng4 20. fxg4 (20. Nxc6 Qxd2 21. Nxd8 Qxc3 $17) 20... Nxd4 21. Kh1 Rxc5 22. Ne4 $11) 19... Nd5 {[%emt 0:02:02]} 20. Nxd4 {[%emt 0:04:58]} Nxd4 {[%emt 0:01:28]} 21. Bxd4 {[%emt 0:00:07]} Ne7 {[%emt 0:02:08]} 22. Bc3 {[%emt 0:03:37]} Qxd2 {[%emt 0:00:12]} 23. Bxd2 {[%emt 0:00:37][%cal Bc3d2,Bd2e3,Be3d4][%mdl 32]} Bd4+ {[%emt 0:00:05]} 24. Kh1 {[%emt 0:00:02]} Bxc5 {[%emt 0:01:20]} 25. Nxc5 {[%emt 0:01:15]} Rxc5 {[%emt 0:00:04]} 26. Be3 {[%emt 0:00:53][%csl LRc5,LRd8]} Rxd1 {[%emt 0:00:06]} 27. Rxd1 $11 {[%emt 0:00:02] KRB-KRN} Rc2 {[%emt 0:00:09]} 28. Rd8+ {[%emt 0:03:55]} Kg7 {[%emt 0:00:05]} 29. Bd4+ {[%emt 0:00:15]} ({Don't play} 29. Bxa7 Nc6 30. Rc8 Rxa2 $17) 29... Kh6 {[%emt 0:00:05]} 30. Be3+ {[%emt 0:01:32]} Kg7 {[%emt 0:00:05]} 31. Bd4+ {[%emt 0:01:09]} ({Much weaker is} 31. Bxa7 Nc6 32. Rc8 Rxa2 $17) 31... Kh6 $1 {[%emt 0:00:05]} 32. Be3+ {[%emt 0:00:09] Weighted Error Value: White=0.06 (flawless) /Black=0.05 (flawless) .  Mistake:       	---       	Black=1      Inaccurate:     	White=1     	Black=1      OK:         	White=7     	Black=10     Best:        	White=1     	Black=1      Strong:       	---       	Black=1} 1/2-1/2

[Event "Chinese League Division-A 2024"]
[Site "Fuling Chongqing"]
[Date "2024.06.26"]
[Round "1.30"]
[White "Bai, Xue"]
[Black "Wang, Chuqiao"]
[Result "1/2-1/2"]
[ECO "C50"]
[WhiteElo "2114"]
[BlackElo "2278"]
[Annotator "RC"]
[PlyCount "87"]
[EventDate "2024.06.28"]
[EventType "team-tourn"]
[EventCountry "CHN"]
[SourceTitle "playchess.com"]
[Source "ChessBase"]
[SourceQuality "1"]
[TimeControl "40/5400+30:1800+30"]

1. e4 {[%emt 0:00:03]} e5 {[%emt 0:00:09]} 2. Nf3 {[%emt 0:00:06]} Nc6 {[%emt 0:00:07]} 3. d4 {[%emt 0:00:13]} exd4 {[%emt 0:00:25]} 4. Bc4 {[%emt 0:00:20]} Nf6 {[%emt 0:05:22]} 5. O-O {[%emt 0:00:10]} d6 {[%emt 0:05:13]} 6. Nxd4 {[%emt 0:07:53]} Be7 {[%emt 0:05:27]} 7. Nc3 {[%emt 0:07:30]} O-O {[%emt 0:04:43]} 8. Re1 {[%emt 0:09:14]} Bd7 {[%emt 0:11:15]} 9. h3 {[%emt 0:01:18]} a6 {[%emt 0:01:08]} 10. a4 {[%emt 0:02:02]} Rb8 {[%emt 0:03:08]} 11. Nxc6 {[%emt 0:14:59]} Bxc6 {[%emt 0:00:14]} 12. a5 {[%emt 0:00:17]} Nd7 {[%emt 0:04:26]} 13. Nd5 {[%emt 0:02:39]} Bh4 {[%emt 0:04:32]} 14. g3 {[%emt 0:05:03]} Bf6 {[%emt 0:02:51]} 15. c3 {[%emt 0:00:25]} Re8 {[%emt 0:02:23]} 16. Bf4 {[%emt 0:01:19]} Be5 {[%emt 0:01:56]} 17. Be3 {[%emt 0:07:12]} Bf6 {[%emt 0:03:11]} 18. Bd4 {[%emt 0:07:35]} Bxd4 {[%emt 0:15:36]} 19. Qxd4 {[%emt 0:02:04]} Ne5 {[%emt 0:01:05]} 20. Be2 {[%emt 0:00:15]} Bb5 {[%emt 0:03:12]} 21. Kg2 {[%emt 0:00:07]} Nc6 {[%emt 0:02:07]} 22. Qe3 {[%emt 0:02:10]} Bxe2 {[%emt 0:01:23]} 23. Qxe2 {[%emt 0:00:22]} Ne7 {[%emt 0:01:41]} 24. Qc4 {[%emt 0:02:15]} Nxd5 {[%emt 0:00:52]} 25. exd5 {[%emt 0:00:13]} Qd7 {[%emt 0:00:07]} 26. b4 {[%emt 0:03:06]} h6 {[%emt 0:00:53]} 27. Qd3 {[%emt 0:01:03]} Rxe1 {[%emt 0:02:05]} 28. Rxe1 {[%emt 0:00:06]} Re8 {[%emt 0:00:03]} 29. Re4 {[%emt 0:02:30]} Rxe4 {[%emt 0:02:25]} 30. Qxe4 {[%emt 0:00:06]} g6 {[%emt 0:00:34]} 31. h4 {[%emt 0:02:28]} h5 {[%emt 0:00:39]} 32. Kf3 {[%emt 0:02:12]} Qb5 {[%emt 0:00:31]} 33. Ke3 {[%emt 0:01:09]} Qf1 {[%emt 0:02:38]} 34. Qd3 {[%emt 0:02:12]} Qe1+ {[%emt 0:00:13]} 35. Kf3 {[%emt 0:00:05]} Qe5 {[%emt 0:00:56]} 36. Qc4 {[%emt 0:02:09]} Qe7 {[%emt 0:01:25]} 37. Kg2 {[%emt 0:03:51]} Qd7 {[%emt 0:00:48]} 38. Qe2 {[%emt 0:00:09]} Kg7 {[%emt 0:03:22]} 39. Qd3 {[%emt 0:01:42]} Kg8 {[%emt 0:02:50]} 40. Kg1 {[%emt 0:00:00]} Qe7 {[%emt 0:00:00]} 41. Kf1 {[%emt 0:02:13]} Qd7 {[%emt 0:01:58]} 42. Kg1 {[%emt 0:00:06]} Qe7 {[%emt 0:00:05]} 43. Kf1 {[%emt 0:00:55]} Qd7 {[%emt 0:00:04]} 44. Kg1 {[%emt 0:00:58]} 1/2-1/2

[Event "Chinese League Division-A 2024"]
[Site "Fuling Chongqing"]
[Date "2024.06.27"]
[Round "2.1"]
[White "Li, Chao b"]
[Black "Bu, Xiangzhi"]
[Result "1/2-1/2"]
[ECO "C01"]
[WhiteElo "2645"]
[BlackElo "2689"]
[Annotator "TA"]
[PlyCount "68"]
[EventDate "2024.06.28"]
[EventType "team-tourn"]
[EventCountry "CHN"]
[SourceTitle "playchess.com"]
[Source "ChessBase"]
[SourceQuality "1"]
[TimeControl "40/5400+30:1800+30"]

{[%evp 28,68,0,0,16,15,22,0,11,0,0,0,0,0,0,-13,0,0,7,0,0,0,0,0,0,0,0,0,0,0,0,0,0,0,2,0,0,0,0,0,0,0,0]} 1. e4 {[%emt 0:00:09]} e5 {[%emt 0:00:34]} 2. Nf3 {[%emt 0:00:08]} Nf6 {[%emt 0:01:09]} 3. Nxe5 {[%emt 0:01:14]} d6 {[%emt 0:00:05]} 4. Nf3 {[%emt 0:00:10]} Nxe4 {[%emt 0:00:06]} 5. d3 {[%emt 0:00:57]} Nf6 {[%emt 0:00:23]} 6. d4 {[%emt 0:00:06]} d5 {[%emt 0:00:48]} 7. Bd3 {[%emt 0:01:46]} Bd6 {[%emt 0:00:52]} 8. O-O {[%emt 0:00:09]} O-O {[%emt 0:00:23]} 9. Bg5 {[%emt 0:00:57][%cal Bc1g5,Bg5h4,Bh4g3][%mdl 32]} Bg4 {[%emt 0:02:41]} 10. Nbd2 {[%emt 0:01:07]} Nbd7 {[%emt 0:03:03]} 11. c3 {[%emt 0:01:30]} c6 {[%emt 0:02:28]} 12. Qc2 {[%emt 0:03:34]} Qc7 {[%emt 0:03:34]} 13. Rfe1 {[%emt 0:02:12]} Rfe8 {[%emt 0:02:32]} 14. Bh4 {[%emt 0:01:15]} Bh5 {[%emt 0:02:25]} 15. Bg3 {[%emt 0:01:04] The position is equal.} Bg6 {[%emt 0:00:18]} 16. Bxg6 {[%emt 0:00:57]} hxg6 {[%emt 0:00:06]} 17. Rxe8+ {[%emt 0:01:14]} Rxe8 {[%emt 0:00:06]} 18. Re1 {[%emt 0:00:09]} Rxe1+ {[%emt 0:03:14]} 19. Nxe1 {[%emt 0:00:06]} Bxg3 {[%emt 0:00:15]} 20. hxg3 {[%emt 0:00:07]} Qd8 {[%emt 0:00:52]} 21. Qd1 {[%emt 0:05:22]} Qe7 {[%emt 0:00:14]} 22. Nd3 {[%emt 0:00:15]} Kf8 {[%emt 0:01:57]} 23. Kf1 {[%emt 0:01:12]} Ne4 {[%emt 0:02:28]} 24. Qe1 {[%emt 0:00:56]} g5 {[%emt 0:01:18]} 25. f3 {[%emt 0:01:10]} Nxd2+ {[%emt 0:00:50]} 26. Qxd2 $11 {[%emt 0:00:06][%mdl 4096] Endgame. KQN-KQN} f6 {[%emt 0:00:35]} 27. g4 {[%emt 0:00:40]} Kf7 {[%emt 0:01:39]} 28. Kf2 {[%emt 0:00:10]} Nf8 {[%emt 0:00:39]} 29. Qd1 {[%emt 0:01:49]} Ne6 {[%emt 0:00:49]} 30. g3 {[%emt 0:00:13]} g6 {[%emt 0:00:18]} 31. Qh1 {[%emt 0:00:11]} Kg7 {[%emt 0:00:05]} 32. Qe1 {[%emt 0:00:11]} Kf7 {[%emt 0:00:05]} 33. Qh1 {[%emt 0:00:05]} Kg7 {[%emt 0:00:04]} 34. Qe1 {[%emt 0:00:06]} Kf7 {[%emt 0:00:03] An uneventful encounter.   Weighted Error Value: White=0.03 (flawless) /Black=0.02 (flawless) .  OK:         	White=4     	Black=9} 1/2-1/2